Cogmind - Beta 17 @@@ ROGUE MODE // 2026.08.03 @ 20:18:29 Player: LandRaider Result: Destroyed by D-53 Grenadier with Mini Grenade Launcher Performance ------------- Evolutions (1) 500 Regions Visited (3) 600 Robots Destroyed (28) 140 Value Destroyed (450) 450 Prototype IDs (4) 80 Alien Tech Used (0) 0 Bonus (0) 0 TOTAL SCORE: 1770 Bonus ------- None Cogmind --------- Core Integrity 0/400 Matter 273/300 Energy 80/100 System Corruption 0% Temperature Cool (17) Movement Core (800) Ox15 Location -9/Mines Parts ------- > --- POWER (1) -------- (None) > --- PROPULSION (2) --- (None) > --- UTILITY (4) ------ High-capacity Storage Unit Signal Interpreter Transport Network Coupler > --- WEAPON (2) ------- Beam Rifle Improved Light Cannon > --- INVENTORY (20) --- Light Ion Engine Aluminum Leg Improved Aluminum Leg Medium Storage Unit Medium Matter Pod (15) ECM Suite ECM Suite Heavy EM Pulse Gun Improved EM Shotgun Medium Laser Beam Rifle Improved Light Cannon Datajack Peak State ------------ > --- POWER ------------ Cooled Ion Engine > --- PROPULSION ------- Improved Aluminum Leg Improved Aluminum Leg > --- UTILITY ---------- High-capacity Storage Unit High-capacity Matter Pod Signal Interpreter ECM Suite > --- WEAPON ----------- Beam Rifle Improved Light Cannon > --- INVENTORY -------- Light Ion Engine Light Ion Engine Aluminum Leg Medium Storage Unit Transport Network Coupler ECM Suite ECM Suite Heavy EM Pulse Gun Improved EM Shotgun Medium Laser Beam Rifle Beam Rifle Improved Light Cannon Improved Light Cannon Datajack [Rating: 17] Favorites ----------- Power Cooled Ion Engine Engine Cooled Ion Engine Propulsion Improved Aluminum Leg Leg Improved Aluminum Leg Wheel Compact Wheel Utility Signal Interpreter Device ECM Suite Storage High-capacity Storage Unit Processor Signal Interpreter Weapon Beam Rifle Energy Gun Beam Rifle Ballistic Gun Assault Rifle Ballistic Cannon Improved Light Cannon Build | -11 -10 -9 -9 ------- Run | Yrd Mat Mat Min Slots Evolved 2 | . . 2 . Power . | . . . . Propulsion . | . . . . Utility 2 | . . 2 . Weapon . | . . . . Parts Attached 28 | 6 9 8 5 Power 4 | 1 1 2 . Engine 4 | 1 1 2 . Core . | . . . . Reactor . | . . . . Propulsion 7 | 2 3 1 1 Treads . | . . . . Leg 4 | . 3 1 . Wheel 3 | 2 . . 1 Hover . | . . . . Flight . | . . . . Utility 8 | 1 2 2 3 Device 2 | . . 2 . Storage 4 | 1 1 . 2 Processor 2 | . 1 . 1 Hackware . | . . . . Protection . | . . . . Artifact . | . . . . Weapon 9 | 2 3 3 1 Energy Gun 5 | 1 1 2 1 Energy Cannon . | . . . . Ballistic Gun 1 | 1 . . . Ballistic Cannon 3 | . 2 1 . Launcher . | . . . . Special Weapon . | . . . . Impact Weapon . | . . . . Slashing Weapon . | . . . . Piercing Weapon . | . . . . Special Melee Weapon . | . . . . Unidentified Prototypes 2 | . . 2 . Parts Lost 13 | . 4 3 6 Power 2 | . 1 . 1 Propulsion 6 | . 2 2 2 Utility 1 | . . . 1 Weapon 4 | . 1 1 2 Highest Loss Streak 6 | . 4 3 6 To Critical Strikes . | . . . . Average Backups 10 | 2 7 14 14 Power . | . . . 1 Propulsion 2 | 1 2 2 1 Utility 2 | . . 3 4 Weapon 5 | . 4 6 6 Tool/Special . | . . . . Unused Backups 7 | . 3 . 4 Power . | . . . . Propulsion 3 | . 2 . 1 Utility 1 | . . . 1 Weapon 3 | . 1 . 2 Tool/Special . | . . . . Average Slot Usage (%) 89 | . 91 85 92 Engine 11 | . 12 10 10 Leg 18 | . 15 20 20 Wheel 2 | . 5 . . Device 6 | . . 11 10 Storage 12 | . 14 11 12 Processor 13 | . 13 11 15 Energy Gun 13 | . 14 18 10 Ballistic Gun 1 | . 3 . . Ballistic Cannon 8 | . 10 3 11 Peak Build Rating 17 | 6 12 16 17 Average Rating 12 | 3 10 14 16 On Entrance 8 | . 6 12 16 Avg Prop Armor Cover (%) 10 | . . . 10 Naked Turns . | . . . . Heaviest Build 61 | 12 50 57 61 Greatest Support 32 | 32 32 26 26 Greatest Overweight (x) 17 | . 3 2 17 Average Overweight (x) 1 | . . 1 2 Largest Inventory Capacity 20 | 8 20 20 20 Average Capacity 15 | 6 9 20 20 Most Carried 17 | 4 12 16 17 Average Carried 11 | 2 7 14 14 Final Capacity 20 | 8 20 20 20 Final Carried 14 | 4 12 14 13 Class Distribution -------------------- 100% | Mutant Dominant Class ---------------- Mutant | -10/Materials Mutant | -9/Materials Mutant | -9/Mines Resources | -11 -10 -9 -9 ----------- Run | Yrd Mat Mat Min Matter Collected 684 | 214 243 74 153 Remotely . | . . . . Salvage Created 609 | . 290 287 32 Parts 43 | . 20 20 3 Haulers Intercepted 1 | . . 1 . Recyclers Shooed 1 | . 1 . . Parts Field Recycled . | . . . . Retrieved Matter . | . . . . Parts Self-Destructed . | . . . . Prevented . | . . . . Parts Restored . | . . . . Kills | -11 -10 -9 -9 ------- Run | Yrd Mat Mat Min Combat Hostiles Destroyed 18 | . 9 9 . Guns 10 | . 2 8 . Cannons 8 | . 7 1 . Classes Destroyed 7 | . 5 1 1 Worker 2 | . . . 2 Hauler 1 | . . 1 . Recycler 1 | . 1 . . Mechanic 1 | . 1 . . Watcher 5 | . 3 2 . Swarmer 12 | . 5 7 . Grunt 6 | . 4 2 . Best Kill Streak 7 | . 5 7 2 Combat Bots Only 6 | . 2 6 . Max Kills in Single Turn 2 | . 2 2 1 Gunslinging 1 | . . 1 . Exploded . | . . . . Melee . | . . . . Uniques/NPCs Destroyed . | . . . . Combat | -11 -10 -9 -9 -------- Run | Yrd Mat Mat Min Hostile Shots Fired 201 | . 90 86 25 Missed 45 | . 25 16 4 Hits 156 | . 65 70 21 Melee 1 | . . . 1 Projectile 155 | . 65 70 20 AOE 12 | . . . 12 Critical Strikes 1 | . . 1 . Damage Taken 1808 | . 529 614 665 Core 478 | . 67 148 263 Absorbed by Shields . | . . . . Core Remaining (%) 86 | 100 73 . . Volleys Fired 91 | . 50 36 5 Largest 2 | . 2 2 2 Hottest 112 | . 89 112 89 Shots Fired 166 | . 98 58 10 Gun 115 | . 58 52 5 Cannon 51 | . 40 6 5 Launcher . | . . . . Special . | . . . . Kinetic 61 | . 50 6 5 Thermal 103 | . 48 50 5 Explosive . | . . . . Electromagnetic 2 | . . 2 . Robot Hit Streak 10 | . 10 4 8 Robot Miss Streak 5 | . 4 5 2 Penetration Max . | . . . . Secondary Targets 2 | . . 2 . Max Gunslinging Chain 1 | . . 1 . Shots Hit Robots 93 | . 56 29 8 Core Hits 36 | . 19 15 2 Critical Kills . | . . . . Critical Parts Destroyed . | . . . . Critical Strikes 8 | . 2 5 1 Burn 6 | . 1 5 . Blast 2 | . 1 . 1 Melee Attacks . | . . . . Impact . | . . . . Slashing . | . . . . Piercing . | . . . . Sneak Attacks . | . . . . Combat Hostiles . | . . . . Follow-up Attacks . | . . . . Damage Inflicted 1654 | . 1017 486 151 Guns 864 | . 364 442 58 Cannons 785 | . 653 44 88 Explosions . | . . . . Melee . | . . . . Ramming 5 | . . . 5 Kinetic 843 | . 711 44 88 Thermal 784 | . 306 420 58 Explosive . | . . . . Electromagnetic 22 | . . 22 . Impact . | . . . . Slashing . | . . . . Piercing . | . . . . Highest Corruption . | . . . . Average Corruption . | . . . . Corruption Purged . | . . . . Corruption Blocked . | . . . . Overload Shots . | . . . . Overflow Damage 13 | . 13 . . Projectiles 13 | . 13 . . Explosions . | . . . . Melee . | . . . . Knockbacks 5 | . 3 1 1 Impact . | . . . . Kinetic 5 | . 3 1 1 Secondary . | . . . . Self-Inflicted Damage . | . . . . Shots . | . . . . Rammed . | . . . . Targets Rammed 1 | . . . 1 Kicked 1 | . . . 1 Crushed . | . . . . Highest Temperature 454 | . 195 454 24 Average Temperature 104 | . 51 195 9 Received Heat Transfer 165 | . 54 90 21 Effects 6 | . . 6 . Shutdowns 2 | . . 2 . Energy Bleed 1 | . . 1 . Interference 3 | . . 3 . Siege Activations . | . . . . Martial Activations . | . . . . Shielding Activations . | . . . . Robots Disrupted . | . . . . Combat Hostiles . | . . . . Robots Corrupted . | . . . . Combat Hostiles . | . . . . Parts Fried . | . . . . Impact Corruptions . | . . . . Robots Melted . | . . . . Combat Hostiles . | . . . . Parts Melted 6 | . 2 4 . Heat Transferred 2479 | . 888 1443 148 Parts Sabotaged . | . . . . Parts Stolen . | . . . . Parts Stripped . | . . . . Power Chain Reactions . | . . . . Alert | -11 -10 -9 -9 ------- Run | Yrd Mat Mat Min Maximum Alert Level . | . . . . Low Security (%) 100 | 100 100 100 100 Level 1 . | . . . . Level 2 . | . . . . Level 3 . | . . . . Level 4 . | . . . . Level 5 . | . . . . High Security . | . . . . Max Security . | . . . . Peak Influence 158 | . 158 158 49 Initial 66 | . . 66 49 Average 45 | . 61 72 8 Influence Increases 579 | . 322 232 25 Destroy 0b10 Robot/C 360 | . 180 180 . Destroy 0b10 Robot/NC 50 | . 25 15 10 Destroy Leader 72 | . 36 36 . Successful Hack 5 | . 5 . . Disable Machine 15 | . 15 . . Destroy Structure 2 | . 1 1 . Partial Spotted 15 | . 15 . . Lose Combat Pursuer 60 | . 45 . 15 Influence Decreases 574 | . 164 262 148 Entered New Map 171 | . . 92 79 Time Decay 373 | . 164 140 69 Lost Part 30 | . . 30 . Squads Dispatched 3 | . 1 2 . Investigation . | . . . . Extermination . | . . . . Reinforcement 3 | . 1 2 . Assault . | . . . . Garrison . | . . . . Intercept . | . . . . Searches Triggered . | . . . . Construction Impeded . | . . . . Haulers Reinforced . | . . . . Active Scanning Responses . | . . . . Cargo Convoy Interrupts . | . . . . Stealth | -11 -10 -9 -9 --------- Run | Yrd Mat Mat Min Distress Signals 3 | . 1 2 . Communications Jammed . | . . . . Distress Signals . | . . . . Times Spotted 57 | . 20 18 19 Peak Tracking Total 16 | . 3 4 16 Tactical Retreats 6 | . 3 1 2 ECM-based Alert Blocks 1 | . . 1 . Traps | -11 -10 -9 -9 ------- Run | Yrd Mat Mat Min Traps Triggered 2 | . 2 . . Indirectly . | . . . . Trap Hack Attempts . | . . . . Triggered . | . . . . Disarmed . | . . . . Reprogrammed . | . . . . Reused . | . . . . Traps Extracted . | . . . . Installed . | . . . . Triggered . | . . . . Machines | -11 -10 -9 -9 ---------- Run | Yrd Mat Mat Min Machines Disabled 1 | . 1 . . Max in Single Turn 1 | . 1 . . Machines Repaired . | . . . . Machines Dismantled . | . . . . Machines Sabotaged . | . . . . Overloaded Fab Kills . | . . . . Hacking | -11 -10 -9 -9 --------- Run | Yrd Mat Mat Min Machines Accessed 2 | . 2 . . Terminals 2 | . 2 . . Fabricators . | . . . . Repair Stations . | . . . . Recycling Units . | . . . . Scanalyzers . | . . . . Garrison Access . | . . . . Total Hacks 3 | . 3 . . Successful 3 | . 3 . . Failed . | . . . . Catastrophic . | . . . . Database Lockouts . | . . . . Manual 1 | . 1 . . Terminals 3 | . 3 . . Fabricators . | . . . . Repair Stations . | . . . . Recycling Units . | . . . . Scanalyzers . | . . . . Garrison Access . | . . . . Terminal Hacks 2 | . 2 . . Record 1 | . 1 . . Prototype ID Bank 1 | . 1 . . Fabricator Hacks . | . . . . Repair Station Hacks . | . . . . Recycling Unit Hacks . | . . . . Scanalyzer . | . . . . Garrison Access Hacks . | . . . . Unauthorized Hacks 1 | . 1 . . Terminals 1 | . 1 . . Botnet 1 | . 1 . . Fabricators . | . . . . Repair Stations . | . . . . Recycling Units . | . . . . Scanalyzers . | . . . . Garrison Access . | . . . . Data Cores Recovered . | . . . . Used . | . . . . Hacking Detections 2 | . 2 . . Full Trace Events . | . . . . Feedback Events . | . . . . Feedback Blocked . | . . . . Robot Schematics Acquired . | . . . . Robots Built . | . . . . Authchips . | . . . . Time . | . . . . Total Robot Build Rating . | . . . . Part Schematics Acquired . | . . . . Parts Built . | . . . . Authchips . | . . . . Time . | . . . . Total Part Build Rating . | . . . . Part Studies Acquired . | . . . . Parts Repaired . | . . . . Time . | . . . . Parts Recycled . | . . . . Recycled Matter . | . . . . Retrieved Matter . | . . . . Retrieved Components . | . . . . Parts Scanalyzed . | . . . . Part Schematics Acquired . | . . . . Parts Damaged . | . . . . Bothacking | -11 -10 -9 -9 ------------ Run | Yrd Mat Mat Min Used RIF Installer . | . . . . Robots Hacked . | . . . . Non-combat . | . . . . Combat . | . . . . Robot Hacks Applied . | . . . . Relay Couplers Released . | . . . . Fabnet Peak Effective % . | . . . . Robots Rewired . | . . . . Allies Hacked . | . . . . Hacks Repelled . | . . . . Allies | -11 -10 -9 -9 -------- Run | Yrd Mat Mat Min Total Allies . | . . . . Largest Group . | . . . . Highest-Rated Group . | . . . . Highest-Rated Ally . | . . . . Total Orders . | . . . . Ally Attacks . | . . . . Total Damage . | . . . . Kills . | . . . . Allies Corrupted . | . . . . Allies Melted . | . . . . Intel | -11 -10 -9 -9 ------- Run | Yrd Mat Mat Min Active Infowar (turns) 634 | . . 288 346 T.N.C. 149 | . . . 149 ECM 621 | . . 288 333 Robot Analysis Total . | . . . . Derelict Logs Recovered 1 | . . . 1 Drone Launches . | . . . . Drone Recoveries . | . . . . Exploration | -11 -10 -9 -9 ------------- Run | Yrd Mat Mat Min Turns Passed 1125 | 44 447 288 346 Spaces Moved 413 | 33 181 77 122 Core 4 | 2 1 . 1 Treads . | . . . . Legs 318 | . 132 77 109 Wheels 91 | 31 48 . 12 Hover . | . . . . Flight . | . . . . Fastest Speed 50 | 50 100 190 155 Average Speed 185 | 96 138 224 254 Slowest Speed 900 | 100 200 260 900 Overloaded Moves . | . . . . Propulsion Burnouts . | . . . . Robots Hopped . | . . . . Potential Cave-ins . | . . . . Cave-ins Triggered . | . . . . Exploration Rate (%) 24 | 3 39 11 45 Regions Visited 3 Branch Regions 1 Pre-discovered Areas . | . . . . Known Exits Taken 2 | . 1 1 . Unknown Exits Taken 1 | 1 . . . Scrap Searched 1 | . . . 1 Spaces Dug . | . . . . Terrain Destroyed . | . . . . Melee . | . . . . Projectile . | . . . . AOE . | . . . . Terrain Rammed . | . . . . Walls Destroyed . | . . . . Machines Disabled . | . . . . Actions | -11 -10 -9 -9 --------- Run | Yrd Mat Mat Min Total 603 | 42 279 136 146 Wait 24 | . 17 1 6 Move 410 | 32 180 76 122 Hop . | . . . . Pick Up 33 | 4 17 9 3 Fast Attach 9 | 6 2 . 1 Attach 17 | . 6 8 3 Detach 2 | . . 1 1 Swap 7 | . 3 2 2 Drop 9 | . 4 3 2 Fire 91 | . 50 36 5 Melee . | . . . . Ram . | . . . . Kick 1 | . . . 1 Crush . | . . . . Escape Stasis . | . . . . Rewire . | . . . . Trap . | . . . . Miscellaneous . | . . . . Route ------- -11/Scrapyard -10/Materials -9/Materials -9/Mines History --------- Turn | Location | Event 14 | -11/Scrapyard | Discovered new exit (range 14) 45 | -11/Scrapyard | Entered Materials 163 | -10/Materials | Lost 4 parts (1p2n1w) 311 | -10/Materials | Build established: Mutant 407 | -10/Materials | Discovered new exit (range 16) 478 | -10/Materials | Identified exit to Materials 492 | -10/Materials | Entered another Materials area 492 | -9/Materials | Evolved 2 slots: Utility x2 630 | -9/Materials | Discovered new exit (range 16) 754 | -9/Materials | Lost 3 parts (2n1w) 777 | -9/Materials | Identified exit to Mines 780 | -9/Materials | Entered Mines 1049 | -9/Mines | Assembled infested the area 1054 | -9/Mines | Assisted by a Guerilla fighting off Assembled 1061 | -9/Mines | Learned Materials emergency access door positions 1115 | -9/Mines | Core integrity fell below 50% 1121 | -9/Mines | Core integrity fell below 20% 1126 | -9/Mines | Destroyed by D-53 Grenadier with Mini Grenade Launcher Last Messages --------------- 01115_ K-01 Serf collects debris. 01116_ Imp. Aluminum Leg destroyed. 01117_ K-01 Serf collects debris. 01117_ Cld. Ion Engine destroyed. 01118_ The unstable cave ceiling collapses. 01120_ K-01 Serf collects debris. 01121_ D-53 Grenadier knocked back. 01122_ as-47944 destroyed. 01123_ D-53 Grenadier suffers critical hit (Burn). 01123_ K-01 Serf collects debris. 01124_ D-53 Grenadier destroyed. 01124_ Destroyed Shock Absorption System. 01124_ as-25185 destroyed. 01124_ as-67809 destroyed. 01124_ as-66490 destroyed. 01124_ as-80094 destroyed. 01124_ as-76474 destroyed. 01124_ as-86730 destroyed. 01125_ The unstable cave ceiling collapses. 01126_ as-53713 destroyed. Map ----- +----------------------------------------------------+ | ##??????? #???# ## #??????????????????? | | #???????? #???????### #??????????????????? | | ???????? #?????????# # #??????????????????? | | #???????#####?????????# ## ##??????????????????? | | ??????????????????????# #####???????????????????? | | ??????????????????????# #???????????????????????? | | ??????????????????????# #???????????????????????? | | ??????????????????????# #???????????????????????? | | ??????????????????????# #???????????????????????? | | ??????????????????????# #???????????????????????? | | ??????????????????????# #???????????????????????? | | ??????????????????????# #???????????????????????? | | ??????????????### ##### #???###?????????????????? | | ??????????# = *= =#### ## ##??????????????? | | ????????????????####### ! * #??????????????? | | ??????????????????????###### #??????????????? | | ??????????????????????????? #??????????????? | | ??????????????????????????? #??????????????? | | ?????????????????????????## #??????????????? | | ?????????????????????????# = ###### %?????? | | ???????????????????????### [ ????? | | ?????????????????????### %=g ????? | | ?????????????##?????## *g*###### # ????? | | ?????????????# ## |%#???????????#????? | | ?????????? # k!#????????????????? | | ?????????? % # @ % #????????????????? | | ?????????? d #????????????????? | | ?????????? < ;##????????????????? | | ??????????? # * ???????????????? | | ??????????????## ######??????????????? | | ???????????????### ##% #???????????????????? | | ?????????????????## ####?? #???????????????????? | | ??????????????????###?????? #???????????????????? | | ??????????????????????????? #???????????????????? | | ??????????????????????????? #???????????????????? | | ??????????????????????????? #???????????????????? | | ???????????????????????????? ???????????????????? | | ???????????????????????????? ???????????????????? | | ???????????????????????????? ???????????????????? | | ???????????????????????????? ???????????????????? | | ?????????????????????????????????????????????????? | | ?????????????????????????????????????????????????? | | ?????????????????????????????????????????????????? | | ?????????????????????????????????????????????????? | | ?????????????????????????????????????????????????? | | ?????????????????????????????????????????????????? | | ?????????????????????????????????????????????????? | | ?????????????????????????????????????????????????? | | ?????????????????????????????????????????????????? | | ?????????????????????????????????????????????????? | +----------------------------------------------------+ Best States ------------- Heat Dissipation 28 Energy Generation 14 Energy Capacity 280 Matter Stores 300 Matter Capacity 500 Sight Range 16 Terrain Scan Density 10 ECM Strength 1 Evasion (%) 55 Item Schematics ----------------- None Robot Schematics ------------------ None Fabricated ------------ Nothing Repaired ---------- Nothing Studied --------- None Alien Tech Used ----------------- None Achievements -------------- None Challenges ------------ None Game ------ Seed PhysicsDispersionRifle Manual? 0 Play Time 00:18:44 Cumulative 32.2 hours Start 2026.08.03 @ 18:39:23 End 2026.08.03 @ 20:18:29 Sessions 1 Manual Loads 0 Difficulty Rogue Special Mode None Game No. 27 Rogue 25 Adventurer 2 Explorer 0 Win Type - Total 0 Types 0/0/0/0/0/0/0/0/0/0 Lore% 24 Gallery% 22 Achievement% 19 Wizard Run 0 Options --------- Layout 0 ASCII 0 Keyboard 0 Movement Mouse Keybinds 0 Fullscreen 2 Font 24/Smallcaps Map View 76x50 Zoom Use 0% Tactical HUD 1 Map Filters NONE Filters NONE Steam 1 RUN: 8312ca7b-fe2e-40a8-8fea-93f5a4010a87